fUST/lending_fUST_20250614
["ID","MTS","AMOUNT","RATE_DAILY","PERIOD"]
[365786294,1749912639887,-460.0,0.00023013,4]
[365786295,1749912639897,-460.0,0.00023013,4]
[365786296,1749912639907,-715.45,0.00023013,4]
[365786297,1749912639917,-460.0,0.00023013,4]
[365786298,1749912639927,-738.45,0.00023013,4]
[365786299,1749912639936,-460.0,0.00023013,4]
[365786300,1749912639946,-460.0,0.00023013,4]
[365786301,1749912639955,-460.0,0.00023013,4]
[365786302,1749912639965,-460.0,0.00023013,4]
[365786303,1749912639975,-460.0,0.00023013,4]
[365786304,1749912639985,-758.04,0.00023013,4]
[365786305,1749912639994,-316.95657566,0.00023013,4]
[365786306,1749912640004,-460.0,0.00023013,4]
[365786307,1749912640013,-823.35,0.00023013,4]
[365786308,1749912640023,-460.0,0.00023013,4]
[365786309,1749912640033,-460.0,0.00023013,4]
[365786310,1749912640042,-460.0,0.00023013,4]
[365786312,1749912640051,-507.45,0.00023013,4]
[365786313,1749912640061,-460.0,0.00023013,4]
[365786314,1749912640072,-460.0,0.00023013,4]
[365786315,1749912640085,-2711.89,0.00023013,4]
[365786316,1749912640104,-493.31,0.00023013,4]
[365786318,1749912640126,-460.0,0.00023013,4]
[365786319,1749912640143,-483.25,0.00023013,4]
[365786320,1749912640156,-2513.15,0.00023013,4]
[365786321,1749912640166,-460.0,0.00023013,4]
[365786322,1749912640176,-1320.67,0.00023013,4]
[365786323,1749912640186,-460.0,0.00023013,2]
[365786324,1749912640195,-460.0,0.00023013,4]
[365786325,1749912640205,-460.0,0.00023013,4]
[365786326,1749912640214,-460.0,0.00023013,4]
[365786327,1749912640223,-460.0,0.00023013,4]
[365786328,1749912640232,-2043.42,0.00023013,4]
[365786329,1749912640242,-460.0,0.00023013,4]
[365786330,1749912640251,-460.0,0.00023013,4]
[365786331,1749912640261,-2023.79,0.00023013,4]
[365786332,1749912640270,-460.0,0.00023013,4]
[365786333,1749912640279,-460.0,0.00023013,4]
[365786334,1749912640288,-460.0,0.00023013,4]
[365786335,1749912640297,-460.0,0.00023013,4]
[365786336,1749912640306,-1265.12,0.00023013,4]
[365786337,1749912640315,-3168.06,0.00023013,4]
[365786338,1749912640325,-713.72,0.00023013,4]
[365786339,1749912640334,-460.0,0.00023013,4]
[365786340,1749912640343,-3124.29,0.00023013,4]
[365786341,1749912640352,-460.0,0.00023013,4]
[365786342,1749912640362,-568.72,0.00023013,4]
[365786343,1749912640372,-460.0,0.00023013,4]
[365786344,1749912640382,-460.0,0.00023013,4]
[365786345,1749912640392,-978.65,0.00023013,4]
[365786346,1749912640404,-1354.42,0.00023013,4]
[365786347,1749912640414,-604.61911253,0.00023013,4]
[365786348,1749912640424,-460.0,0.00023013,4]
[365786350,1749912640434,-1635.93,0.00023013,4]
[365786352,1749912640443,-460.0,0.00023013,4]
[365786364,1749912640551,-2896.64,0.00023013,4]
[365786366,1749912640561,-460.0,0.00023013,4]
[365786368,1749912640571,-460.0,0.00023013,4]
[365786370,1749912640582,-2271.64,0.00023013,4]
[365786372,1749912640592,-460.0,0.00023013,4]
[365786374,1749912640602,-1048.61,0.00023013,4]
[365786376,1749912640611,-460.0,0.00023013,4]
[365786378,1749912640622,-479.18919863,0.00023038,8]
[365786380,1749912640631,-207.4,0.00023075,2]
[365786382,1749912640641,-151.3462781,0.00023075,2]
[365786384,1749912640651,-5000.0,0.00023075,2]
[365786387,1749912640664,-500.0,0.00023075,2]
[365786389,1749912640675,-1688.0,0.00023075,2]
[365786391,1749912640684,-500.0,0.00023075,2]
[365786392,1749912640694,-500.0,0.00023075,2]
[365786395,1749912640707,-1000.0,0.00023075,2]
[365786396,1749912640717,-1000.0,0.00023075,2]
[365786399,1749912640727,-500.0,0.00023075,2]
[365786401,1749912640737,-1000.0,0.00023075,2]
[365786403,1749912640748,-500.0,0.00023075,2]
[365786405,1749912640758,-1000.0,0.00023075,2]
[365786407,1749912640767,-500.0,0.00023075,2]
[365786409,1749912640776,-1000.0,0.00023075,2]
[365786411,1749912640786,-500.0,0.00023075,2]
[365786413,1749912640795,-1000.0,0.00023075,2]
[365786415,1749912640805,-500.0,0.00023075,2]
[365786417,1749912640814,-1000.0,0.00023075,2]
[365786419,1749912640823,-500.0,0.00023075,2]
[365786421,1749912640833,-500.0,0.00023075,2]
[365786423,1749912640842,-500.0,0.00023075,2]
[365786425,1749912640851,-500.0,0.00023075,2]
[365786427,1749912640860,-500.0,0.00023075,2]
[365786429,1749912640869,-500.0,0.00023075,2]
[365786431,1749912640878,-500.0,0.00023075,2]
[365786433,1749912640887,-500.0,0.00023075,2]
[365786435,1749912640898,-801.96,0.000231,7]
[365786437,1749912640907,-1750.456,0.0002313,2]
[365786438,1749912640916,-479.18919863,0.00023141,8]
[365786439,1749912640925,-1815.222872,0.00023185,2]
[365786440,1749912640934,-151.0,0.000232,9]
[365786441,1749912640943,-1909.14178106,0.00023209,2]
[365786442,1749912640952,-479.18919863,0.00023245,8]
[365786443,1749912640962,-495.6,0.00023277,3]
[365786444,1749912640971,-160.0,0.00023286,2]
[365786445,1749912640980,-688.35,0.00023287,4]
[365786446,1749912640989,-454.35,0.00023287,4]
[365786447,1749912640999,-460.0,0.00023287,4]
[365786448,1749912641008,-460.0,0.00023287,4]
[365786449,1749912641017,-715.45,0.00023287,4]
[365786450,1749912641025,-460.0,0.00023287,4]
[365786451,1749912641034,-738.45,0.00023287,4]
[365786452,1749912641043,-460.0,0.00023287,4]
[365786453,1749912641052,-460.0,0.00023287,4]
[365786454,1749912641061,-460.0,0.00023287,4]
[365786455,1749912641070,-460.0,0.00023287,4]
[365786456,1749912641079,-460.0,0.00023287,4]
[365786457,1749912641088,-758.04,0.00023287,4]
[365786458,1749912641097,-460.0,0.00023287,4]
[365786459,1749912641106,-823.35,0.00023287,4]
[365786460,1749912641115,-460.0,0.00023287,4]
[365786461,1749912641125,-460.0,0.00023287,4]
[365786462,1749912641134,-460.0,0.00023287,4]
[365786463,1749912641143,-507.45,0.00023287,4]
[365786464,1749912641152,-460.0,0.00023287,4]
[365786465,1749912641162,-310.0,0.00023287,4]
[365786466,1749912641171,-2711.89,0.00023287,4]
[365786467,1749912641180,-493.31,0.00023287,4]
[365786468,1749912641189,-460.0,0.00023287,4]
[365786469,1749912641199,-483.25,0.00023287,4]
[365786470,1749912641208,-2513.15,0.00023287,4]
[365786471,1749912641217,-460.0,0.00023287,4]
[365786472,1749912641226,-1320.67,0.00023287,4]
[365786473,1749912641236,-460.0,0.00023287,2]
[365786474,1749912641246,-460.0,0.00023287,4]
[365786476,1749912641255,-460.0,0.00023287,4]
[365786477,1749912641264,-460.0,0.00023287,4]
[365786479,1749912641273,-460.0,0.00023287,4]
[365786481,1749912641283,-2043.42,0.00023287,4]
[365786483,1749912641292,-460.0,0.00023287,4]
[365786485,1749912641301,-460.0,0.00023287,4]
[365786487,1749912641311,-2023.79,0.00023287,4]
[365786489,1749912641320,-460.0,0.00023287,4]
[365786491,1749912641329,-460.0,0.00023287,4]
[365786493,1749912641339,-460.0,0.00023287,4]
[365786495,1749912641348,-460.0,0.00023287,4]
[365786497,1749912641357,-1265.12,0.00023287,4]
[365786499,1749912641366,-3168.06,0.00023287,4]
[365786501,1749912641376,-713.72,0.00023287,4]
[365786503,1749912641385,-460.0,0.00023287,4]
[365786505,1749912641396,-3124.29,0.00023287,4]
[365786507,1749912641405,-460.0,0.00023287,4]
[365786509,1749912641414,-568.72,0.00023287,4]
[365786511,1749912641423,-460.0,0.00023287,4]
[365786513,1749912641432,-460.0,0.00023287,4]
[365786515,1749912641442,-978.65,0.00023287,4]
[365786517,1749912641451,-1354.42,0.00023287,4]
[365786519,1749912641460,-460.0,0.00023287,4]
[365786521,1749912641470,-1635.93,0.00023287,4]
[365786523,1749912641480,-460.0,0.00023287,4]
[365786525,1749912641489,-2896.64,0.00023287,4]
[365786527,1749912641498,-460.0,0.00023287,4]
[365786529,1749912641508,-490.26494132,0.00023287,4]
[365786531,1749912641517,-2271.64,0.00023287,4]
[365786533,1749912641526,-460.0,0.00023287,4]
[365786535,1749912641535,-1048.61,0.00023287,4]
[365786537,1749912641544,-460.0,0.00023287,4]
[365786539,1749912641554,-160.0,0.0002333,2]
[365786541,1749912641565,-213.28201367,0.0002333,2]
[365786544,1749912641575,-500.0,0.00023346,2]
[365786546,1749912641585,-479.18919863,0.00023348,9]
[365786547,1749912641594,-153.0,0.00023397,2]
[365786550,1749912641604,-153.0,0.00023397,2]
[365786551,1749912641613,-153.0,0.00023397,2]
[365786553,1749912641623,-153.0,0.00023397,2]
[365786555,1749912641633,-153.0,0.00023397,2]
[365786557,1749912641642,-153.0,0.00023397,2]
[365786559,1749912641652,-153.0,0.00023397,2]
[365786561,1749912641662,-153.0,0.00023397,2]
[365786563,1749912641672,-153.0,0.00023397,2]
[365786565,1749912641681,-153.0,0.00023397,2]
[365786567,1749912641690,-153.0,0.00023397,2]
[365786569,1749912641700,-153.0,0.00023397,2]
[365786571,1749912641710,-153.0,0.00023397,2]
[365786573,1749912641719,-153.0,0.00023397,2]
[365786575,1749912641729,-153.0,0.00023397,2]
[365786577,1749912641740,-153.0,0.00023397,2]
[365786579,1749912641749,-153.0,0.00023397,2]
[365786581,1749912641758,-153.0,0.00023397,2]
[365786583,1749912641767,-153.0,0.00023397,2]
[365786585,1749912641776,-153.0,0.00023397,2]
[365786587,1749912641786,-153.0,0.00023397,2]
[365786589,1749912641796,-153.0,0.00023397,2]
[365786591,1749912641805,-153.0,0.00023397,2]
[365786593,1749912641814,-153.0,0.00023397,2]
[365786595,1749912641823,-153.0,0.00023397,2]
[365786597,1749912641834,-151.0,0.000234,6]
[365786599,1749912641843,-151.0,0.000234,9]
[365786601,1749912641852,-153.0,0.00023407,2]
[365786603,1749912641862,-153.0,0.00023407,2]
[365786605,1749912641871,-153.0,0.00023407,2]
[365786607,1749912641879,-153.0,0.00023407,2]
[365786608,1749912641889,-153.0,0.00023407,2]
[365786609,1749912641898,-479.18919863,0.00023452,9]
[365786610,1749912641908,-223.44416616,0.00023456,2]
[365786611,1749912641918,-12533.30537164,0.00023491,2]
[365786612,1749912641927,-11174.44650096,0.00023495,2]
[365786613,1749912641937,-1000.0,0.00023521,2]
[365786614,1749912641947,-1000.0,0.00023521,2]
[365786615,1749912641957,-1000.0,0.00023521,2]
[365786616,1749912641966,-1000.0,0.00023521,2]
[365786617,1749912641975,-500.0,0.00023521,2]
[365786618,1749912641985,-1000.0,0.00023521,2]
[365786619,1749912641995,-1200.0,0.00023521,2]
[365786620,1749912642005,-500.0,0.00023521,2]
[365786621,1749912642015,-500.0,0.00023521,2]
[365786622,1749912642025,-1000.0,0.00023521,2]
[365786623,1749912642036,-479.18919863,0.00023555,9]
[365786624,1749912642045,-2000.0,0.0002356,2]
[365786625,1749912642055,-688.35,0.00023561,4]
[365786626,1749912642064,-460.0,0.00023561,4]
[365786627,1749912642074,-460.0,0.00023561,4]
[365786628,1749912642083,-715.45,0.00023561,4]
[365786629,1749912642092,-460.0,0.00023561,4]
[365786630,1749912642101,-738.45,0.00023561,4]
[365786631,1749912642110,-460.0,0.00023561,4]
[365786632,1749912642120,-460.0,0.00023561,4]
[365786633,1749912642129,-460.0,0.00023561,4]
[365786634,1749912642139,-460.0,0.00023561,4]
[365786635,1749912642148,-460.0,0.00023561,4]
[365786636,1749912642157,-758.04,0.00023561,4]
[365786637,1749912642166,-460.0,0.00023561,4]
[365786638,1749912642175,-823.35,0.00023561,4]
[365786639,1749912642184,-460.0,0.00023561,4]
[365786641,1749912642194,-460.0,0.00023561,4]
[365786642,1749912642203,-460.0,0.00023561,4]
[365786643,1749912642212,-507.45,0.00023561,4]
[365786645,1749912642221,-460.0,0.00023561,4]
[365786647,1749912642230,-2711.89,0.00023561,4]
[365786648,1749912642239,-493.31,0.00023561,4]
[365786649,1749912642249,-424.3161716,0.00023561,4]
[365786650,1749912642258,-483.25,0.00023561,4]
[365786651,1749912642268,-2513.15,0.00023561,4]
[365786652,1749912642277,-456.72762931,0.00023561,4]
[365786653,1749912642287,-1320.67,0.00023561,4]
[365786654,1749912642296,-460.0,0.00023561,2]
[365786655,1749912642305,-460.0,0.00023561,4]
[365786656,1749912642315,-460.0,0.00023561,4]
[365786657,1749912642326,-460.0,0.00023561,4]
[365786658,1749912642335,-460.0,0.00023561,4]
[365786659,1749912642345,-2043.42,0.00023561,4]
[365786660,1749912642354,-460.0,0.00023561,4]
[365786661,1749912642364,-2023.79,0.00023561,4]
[365786662,1749912642373,-460.0,0.00023561,4]
[365786663,1749912642382,-460.0,0.00023561,4]
[365786664,1749912642391,-460.0,0.00023561,4]
[365786665,1749912642400,-1265.12,0.00023561,4]
[365786666,1749912642409,-3168.06,0.00023561,4]
[365786667,1749912642419,-713.72,0.00023561,4]
[365786668,1749912642428,-460.0,0.00023561,4]
[365786669,1749912642438,-3124.29,0.00023561,4]
[365786670,1749912642447,-460.0,0.00023561,4]
[365786671,1749912642456,-568.72,0.00023561,4]
[365786672,1749912642465,-460.0,0.00023561,4]
[365786673,1749912642474,-460.0,0.00023561,4]
[365786674,1749912642484,-978.65,0.00023561,4]
[365786675,1749912642493,-1354.42,0.00023561,4]
[365786676,1749912642503,-460.0,0.00023561,4]
[365786677,1749912642512,-1635.93,0.00023561,4]
[365786678,1749912642605,-460.0,0.00023561,4]
[365786679,1749912642615,-2896.64,0.00023561,4]
[365786680,1749912642626,-460.0,0.00023561,4]
[365786681,1749912642635,-2271.64,0.00023561,4]
[365786682,1749912642645,-460.0,0.00023561,4]
[365786683,1749912642655,-1048.61,0.00023561,4]
[365786684,1749912642668,-460.0,0.00023561,4]
[365786685,1749912642677,-2705.4,0.00023587,2]
[365786686,1749912642687,-151.0,0.000236,6]
[365786687,1749912642698,-151.0,0.000236,9]
[365786688,1749912642709,-479.18919863,0.00023659,9]
[365786689,1749912642719,-226.0,0.0002367,2]
[365786690,1749912642734,-1909.14178106,0.00023673,2]
[365786691,1749912642746,-2217.9015247,0.0002368,2]
[365786692,1749912642757,-33115.23969263,0.00023687,2]
[365786693,1749912642766,-785.08,0.00023741,2]
[365786694,1749912642776,-479.18919863,0.00023762,9]
[365786695,1749912642786,-1527.27102792,0.0002377,2]
[365786696,1749912642796,-3386.42692365,0.0002377,2]
[365786697,1749912642806,-588702.80798,0.0002377,15]
[365786698,1749912642816,-500.0,0.00023773,2]
[365786699,1749912642825,-295.84509687,0.00023773,2]
[365786700,1749912642834,-503.66755232,0.00023773,2]
[365786701,1749912642846,-500.0,0.00023773,2]
[365786702,1749912642856,-500.0,0.00023773,2]
[365786703,1749912642866,-160.47005698,0.00023779,2]
[365786704,1749912642875,-206750.74201161,0.0002378,5]
[365786705,1749912642987,-3338.92670124,0.0002378,5]
[365786707,1749912643241,-6292.35090533,0.00021487,2]
[365786708,1749912643253,-9707.64909467,0.00021487,2]
[365786709,1749912643262,-1931.3100615,0.00021487,2]
[365786711,1749912643272,-460.0,0.00021917,4]
[365786712,1749912643281,-400.0,0.00021917,4]
[365786713,1749912643291,-460.0,0.00021917,4]
[365786714,1749912643300,-450.19913375,0.00022191,4]
[365786715,1749912643312,-9.80086625,0.00022191,4]
[365786717,1749912643321,-589.97,0.00022465,4]
[365786718,1749912643332,-447387.09631233,0.0002378,5]
[365786719,1749912643341,-151.0,0.0002378,7]
[365786720,1749912643351,-151.0,0.0002378,7]
[365786721,1749912643361,-152.199679,0.0002378,7]
[365786723,1749912643371,-152.199679,0.0002378,7]
[365786724,1749912643380,-151.0,0.0002378,7]
[365786725,1749912643390,-151.0,0.0002378,7]
[365786726,1749912643399,-189.589781,0.0002378,7]
[365786727,1749912643408,-189.589781,0.0002378,7]
[365786728,1749912643417,-151.0,0.0002378,7]
[365786729,1749912643427,-151.0,0.0002378,7]
[365786730,1749912643437,-151.0,0.0002378,2]
[365786731,1749912643446,-483.228117,0.0002378,7]
[365786732,1749912643455,-483.228117,0.0002378,7]
[365786733,1749912643465,-53075.27,0.000238,7]
[365786734,1749912643475,-81146.58,0.000238,2]
[365786735,1749912643484,-1867.23,0.000238,7]
[365786736,1749912643494,-845.10789306,0.000238,7]
[365786737,1749912643503,-2217.90152466,0.00023815,2]
[365786738,1749912643513,-688.35,0.00023835,4]
[365786739,1749912643523,-590.55423664,0.00023835,4]
[365786740,1749912643533,-460.0,0.00023835,4]
[365786741,1749912643543,-460.0,0.00023835,4]
[365786742,1749912643552,-738.45,0.00023835,4]
[365786743,1749912643562,-460.0,0.00023835,4]
[365786744,1749912643571,-460.0,0.00023835,4]
[365786745,1749912643581,-460.0,0.00023835,4]
[365786746,1749912643591,-460.0,0.00023835,4]
[365786747,1749912643600,-460.0,0.00023835,4]
[365786748,1749912643610,-758.04,0.00023835,4]
[365786749,1749912643620,-460.0,0.00023835,4]
[365786750,1749912643630,-823.35,0.00023835,4]
[365786751,1749912643640,-460.0,0.00023835,4]
[365786752,1749912643649,-460.0,0.00023835,4]
[365786753,1749912643661,-393.14,0.00023835,4]
[365786754,1749912643671,-507.45,0.00023835,4]
[365786755,1749912643681,-460.0,0.00023835,4]
[365786756,1749912643691,-2711.89,0.00023835,4]
[365786757,1749912643704,-493.31,0.00023835,4]
[365786758,1749912643714,-483.25,0.00023835,4]
[365786759,1749912643723,-2513.15,0.00023835,4]
[365786760,1749912643733,-1320.67,0.00023835,4]
[365786761,1749912643746,-460.0,0.00023835,2]
[365786762,1749912643756,-460.0,0.00023835,4]
[365786763,1749912643765,-460.0,0.00023835,4]
[365786764,1749912643776,-460.0,0.00023835,4]
[365786765,1749912643786,-460.0,0.00023835,4]
[365786766,1749912643795,-2043.42,0.00023835,4]
[365786767,1749912643805,-2023.79,0.00023835,4]
[365786768,1749912643814,-460.0,0.00023835,4]
[365786769,1749912643824,-590.10126997,0.00023835,4]
[365786770,1749912643833,-460.0,0.00023835,4]
[365786771,1749912643842,-1265.12,0.00023835,4]
[365786772,1749912643851,-3168.06,0.00023835,4]
[365786773,1749912643861,-713.72,0.00023835,4]
[365786774,1749912643871,-460.0,0.00023835,4]
[365786775,1749912643880,-3124.29,0.00023835,4]
[365786776,1749912643889,-460.0,0.00023835,4]
[365786777,1749912643899,-568.72,0.00023835,4]
[365786778,1749912643908,-460.0,0.00023835,4]
[365786779,1749912643918,-978.65,0.00023835,4]
[365786780,1749912643928,-460.0,0.00023835,4]
[365786781,1749912643937,-1354.42,0.00023835,4]
[365786782,1749912643947,-460.0,0.00023835,4]
[365786783,1749912643956,-1635.93,0.00023835,4]
[365786784,1749912643966,-460.0,0.00023835,4]
[365786785,1749912643976,-2896.64,0.00023835,4]
[365786786,1749912643986,-460.0,0.00023835,4]
[365786787,1749912643995,-2271.64,0.00023835,4]
[365786788,1749912644004,-460.0,0.00023835,4]
[365786789,1749912644015,-1048.61,0.00023835,4]
[365786790,1749912644024,-460.0,0.00023835,4]
[365786791,1749912644034,-785.08,0.00023841,5]
[365786792,1749912644043,-479.18919863,0.00023866,10]
[365786793,1749912644053,-200.0,0.00023869,2]
[365786794,1749912644062,-200.0,0.00023869,2]
[365786795,1749912644073,-155817.81747255,0.0002387,2]
[365786796,1749912644083,-165.611223,0.0002387,7]
[365786797,1749912644092,-165.611223,0.0002387,7]
[365786798,1749912644102,-152.635072,0.0002387,7]
[365786799,1749912644112,-152.635072,0.0002387,7]
[365786800,1749912644122,-151.0,0.0002387,7]
[365786801,1749912644132,-151.0,0.0002387,7]
[365786802,1749912644142,-152.199679,0.0002387,7]
[365786803,1749912644152,-152.199679,0.0002387,7]
[365786804,1749912644161,-151.0,0.0002387,7]
[365786805,1749912644171,-151.0,0.0002387,7]
[365786806,1749912644180,-151.0,0.0002387,7]
[365786807,1749912644190,-189.589781,0.0002387,7]
[365786808,1749912644200,-189.589781,0.0002387,7]
[365786809,1749912644209,-151.0,0.0002387,7]
[365786810,1749912644219,-151.0,0.0002387,7]
[365786811,1749912644229,-151.0,0.0002387,2]
[365786812,1749912644239,-483.228117,0.0002387,7]
[365786813,1749912644248,-483.228117,0.0002387,7]
[365786814,1749912644258,-150.0,0.00023873,2]
[365786815,1749912644268,-226.0,0.00023886,2]
[365786816,1749912644278,-964.0,0.00023888,2]
[365786817,1749912644288,-2160.0,0.00023888,2]
[365786818,1749912644298,-653.0,0.00023888,2]
[365786819,1749912644307,-223.314,0.00023888,2]
[365786820,1749912644317,-405.0,0.00023888,2]
[365786821,1749912644326,-200.97384328,0.00023893,2]
[365786822,1749912644337,-1925.43,0.000239,2]
[365786823,1749912644347,-168.0,0.0002392,2]
[365786824,1749912644440,-785.08,0.00023941,4]
[365786825,1749912644450,-2217.90152466,0.00023951,2]
[365786826,1749912644459,-226.0,0.00023968,7]
[365786827,1749912644469,-479.18919863,0.00023969,10]
[365786828,1749912644479,-1000.0,0.0002397,7]
[365786829,1749912644489,-500.0,0.00023973,2]
[365786830,1749912644499,-500.0,0.00023973,2]
[365786831,1749912644508,-500.0,0.00023973,2]
[365786832,1749912644519,-38215.6346154,0.00023998,2]
[365786833,1749912644529,-200.0,0.00023999,2]
[365786834,1749912644539,-9810.72613944,0.00024,42]
[365786835,1749912644549,-1663.98628389,0.00024,2]
[365786836,1749912644559,-29710.67291848,0.00024,2]
[365786837,1749912644601,-329.94344376,0.00024,2]
[365786838,1749912644618,-515.0,0.00024,2]
[365786839,1749912644694,-401.54003609,0.00021917,4]
[365786840,1749912644706,-11280.96525618,0.00024,2]
[365786849,1749912903079,1280.0,0.00024658,120]
[365786851,1749912952984,1280.0,0.00024658,120]
[365786853,1749912968440,622.32,0.00024658,120]
[365786859,1749913180196,180.12969338,0.00019625,2]
[365786861,1749913202267,377.6846,0.00013699,2]
[365786866,1749913228044,721.0,0.0002,2]
[365786873,1749913429403,430.0,0.00024993,60]
[365786879,1749913637108,-5354.5730543,0.00020016,2]
[365786880,1749913637130,-300.0,0.00020145,2]
[365786881,1749913637151,-300.0,0.00020146,2]
[365786882,1749913637172,-1163.0,0.00020146,2]
[365786883,1749913637194,-300.0,0.00020146,2]
[365786884,1749913637214,-1904.98745417,0.00020147,2]
[365786906,1749913831798,-864.2992677,0.00020051,2]
[365786907,1749913831808,-8095.01254583,0.00020147,2]
[365786908,1749913831818,-235.3532387,0.00020183,2]
[365786909,1749913831827,-377.6846,0.00020187,2]
[365786910,1749913831837,-300.0,0.00020219,2]
[365786911,1749913831847,-666.0,0.0002022,2]
[365786912,1749913831857,-181.717641,0.00020248,2]
[365786913,1749913831867,-376.577824,0.00020307,2]
[365786914,1749913831877,-640.5285468,0.00020343,2]
[365786915,1749913831886,-169.93573205,0.00020395,2]
[365786916,1749913831896,-500.0,0.00020395,2]
[365786918,1749913831906,-500.0,0.00020395,2]
[365786919,1749913831917,-500.0,0.00020395,2]
[365786920,1749913831926,-766.1209014,0.00020622,2]
[365786922,1749913831936,-457.973449,0.00020701,2]
[365786923,1749913831945,-2685.0226669,0.00020903,2]
[365786926,1749913831955,-6986.36385282,0.00020925,2]
[365786928,1749913831965,-5000.0,0.00020938,2]
[365786930,1749913831974,-1417.14,0.00020995,2]
[365786932,1749913831984,-600.0,0.00021154,2]
[365786934,1749913831994,-200.0,0.0002125,7]
[365786936,1749913832004,-247.86667656,0.00021259,2]
[365786938,1749913832015,-1977.0,0.00021352,2]
[365786940,1749913832025,-2938.1870257,0.00021393,2]
[365786943,1749913832044,-154.23238316,0.00021717,2]
[365786945,1749913832055,-1361.1675793,0.00021817,2]
[365786947,1749913832066,-182.98136501,0.00021817,2]
[365786949,1749913832077,-1807.4678036,0.00021822,2]
[365786951,1749913832090,-169.5321964,0.00021822,2]
[365786953,1749913832100,-182.98136501,0.00021845,2]
[365786955,1749913832111,-182.98136501,0.00021873,2]
[365786957,1749913832122,-424.71529301,0.000219,6]
[365786959,1749913832132,-159.483,0.00021916,2]
[365786961,1749913832141,-541.05840083,0.00021916,2]
[365786963,1749913832151,-500.0,0.00021916,2]
[365786966,1749913832163,-500.0,0.00021916,2]
[365786967,1749913832172,-500.0,0.00021916,2]
[365786970,1749913832182,-528.81257234,0.00021916,2]
[365786972,1749913832191,-500.0,0.00021916,2]
[365786974,1749913832201,-500.0,0.00021916,2]
[365786976,1749913832211,-500.0,0.00021916,2]
[365786978,1749913832220,-500.0,0.00021916,2]
[365786980,1749913832230,-160.0,0.00021916,2]
[365786982,1749913832240,-192.25222457,0.00021917,4]
[365786984,1749913832251,-440.0,0.00021917,4]
[365786986,1749913832261,-440.0,0.00021917,4]
[365786988,1749913832272,-523.40343044,0.00021917,4]
[365786990,1749913832282,-440.0,0.00021917,4]
[365786992,1749913832291,-460.0,0.00021917,4]
[365786994,1749913832301,-292.34601701,0.00021917,4]
[365786996,1749913832311,-500.0,0.00021917,4]
[365786998,1749913832321,-420.0,0.00021917,4]
[365787000,1749913832330,-430.0,0.00021917,4]
[365787002,1749913832340,-440.0,0.00021917,4]
[365787004,1749913832350,-440.0,0.00021917,4]
[365787006,1749913832360,-440.0,0.00021917,4]
[365787008,1749913832369,-440.0,0.00021917,4]
[365787010,1749913832378,-430.0,0.00021917,4]
[365787012,1749913832388,-430.0,0.00021917,4]
[365787014,1749913832398,-460.0,0.00021917,4]
[365787016,1749913832407,-430.2739647,0.00021917,4]
[365787018,1749913832417,-440.0,0.00021917,4]
[365787020,1749913832426,-440.0,0.00021917,4]
[365787022,1749913832437,-291.74770479,0.00021917,4]
[365787024,1749913832446,-445.22036415,0.00021917,4]